[Event "GER-chT Youth Countries 2018"]
[Site "Wurzburg"]
[Date "2018.10.03"]
[Round "2"]
[White "Krastev, Alexander"]
[Black "Yankelevich, Michael"]
[Result "1-0"]
[ECO "B23"]
[WhiteElo "2298"]
[BlackElo "1961"]
[Annotator "NA"]
[PlyCount "95"]
[EventDate "2018.10.02"]
[EventType "team-tourn"]
[EventCountry "GER"]
[SourceTitle "playchess.com"]
[Source "ChessBase"]
[SourceQuality "1"]
[TimeControl "40/5400+30:1800+30"]

1. e4 {[%emt 0:00:00]} c5 {[%emt 0:00:00]} 2. Nc3 {[%emt 0:00:00]} e6 {[%emt 0:00:07]} 3. Nf3 {[%emt 0:00:00]} a6 {[%emt 0:00:08]} 4. g3 {[%emt 0:00:03]} Nc6 {[%emt 0:00:17]} 5. Bg2 {[%emt 0:00:04]} Qc7 {[%emt 0:00:22]} 6. d4 {[%emt 0:00:15]} cxd4 {[%emt 0:01:19]} 7. Nxd4 {[%emt 0:00:06]} Nf6 {[%emt 0:02:02]} 8. O-O {[%emt 0:00:07]} Nxd4 {[%emt 0:00:23]} 9. Qxd4 {[%emt 0:00:16]} Bc5 {[%emt 0:01:24]} 10. Bf4 {[%emt 0:00:09]} d6 {[%emt 0:00:10]} 11. Qd2 {[%emt 0:01:42]} Nd7 {[%emt 0:00:48]} 12. Rad1 {[%emt 0:05:16]} Ne5 {[%emt 0:00:22]} 13. Na4 {[%emt 0:01:25]} Nc4 {[%emt 0:13:19]} 14. Qc3 {[%emt 0:01:48]} e5 {[%emt 0:00:54]} 15. Nxc5 {[%emt 0:05:26]} Qxc5 {[%emt 0:00:09]} 16. Bc1 {[%emt 0:00:21]} Be6 {[%emt 0:02:53]} 17. b3 {[%emt 0:01:51]} Nb6 {[%emt 0:02:21]} 18. Qd3 {[%emt 0:00:56]} Rd8 {[%emt 0:01:14]} 19. c4 {[%emt 0:00:30]} O-O {[%emt 0:00:49]} 20. Be3 {[%emt 0:01:01]} Qc7 {[%emt 0:00:49]} 21. Qd2 {[%emt 0:06:24]} Nc8 {[%emt 0:01:40]} 22. Qb4 {[%emt 0:01:53]} Rd7 {[%emt 0:05:05]} 23. Rd2 {[%emt 0:01:20]} f5 {[%emt 0:00:43]} 24. exf5 {[%emt 0:03:00]} Bxf5 {[%emt 0:00:18]} 25. c5 {[%emt 0:01:42]} Rf6 {[%emt 0:18:07]} 26. Rfd1 {[%emt 0:03:53]} a5 {[%emt 0:03:14]} 27. Qc4+ {[%emt 0:04:52]} Be6 {[%emt 0:01:07]} 28. Bd5 {[%emt 0:00:24]} Bf7 {[%emt 0:06:40]} 29. Bxf7+ {[%emt 0:02:04]} Rfxf7 {[%emt 0:00:02]} 30. cxd6 {[%emt 0:00:12]} Qxc4 {[%emt 0:00:39]} 31. bxc4 {[%emt 0:00:05]} b6 {[%emt 0:00:48]} 32. Rd5 {[%emt 0:01:19]} Rf6 {[%emt 0:01:00]} 33. c5 {[%emt 0:01:34]} bxc5 {[%emt 0:00:09]} 34. Rxc5 {[%emt 0:00:41]} Nxd6 {[%emt 0:00:22]} 35. Rcd5 {[%emt 0:00:31]} Kf7 {[%emt 0:00:23]} 36. Bc5 {[%emt 0:00:20]} Ke7 {[%emt 0:00:15]} 37. Rxe5+ {[%emt 0:00:05]} Re6 {[%emt 0:00:07]} 38. Red5 {[%emt 0:00:16]} a4 {[%emt 0:00:28]} 39. f4 {[%emt 0:00:14]} g6 {[%emt 0:00:15]} 40. Kf2 {[%emt 0:00:19]} Rd8 {[%emt 0:00:17]} 41. Kf3 {[%emt 0:30:27]} h5 {[%emt 0:30:41]} 42. h3 {[%emt 0:00:24]} Rd7 {[%emt 0:00:10]} 43. g4 {[%emt 0:00:06]} hxg4+ {[%emt 0:00:23]} 44. hxg4 {[%emt 0:00:06]} Rd8 {[%emt 0:00:15]} 45. Kg3 {[%emt 0:02:28]} Rd7 {[%emt 0:00:47]} 46. Rxd6 {[%emt 0:01:18]} Rdxd6 {[%emt 0:00:13]} 47. Rxd6 {[%emt 0:00:09]} Rxd6 {[%emt 0:00:06]} 48. Kh4 {[%emt 0:00:09]} 1-0

[Event "GER-chT Youth Countries 2018"]
[Site "Wurzburg"]
[Date "2018.10.03"]
[Round "2"]
[White "Karsay, Pascal"]
[Black "Neukirchner, Pascal"]
[Result "1/2-1/2"]
[ECO "A08"]
[WhiteElo "2261"]
[BlackElo "2294"]
[Annotator "NA"]
[PlyCount "40"]
[EventDate "2018.10.02"]
[EventType "team-tourn"]
[EventCountry "GER"]
[SourceTitle "playchess.com"]
[Source "ChessBase"]
[SourceQuality "1"]
[TimeControl "40/5400+30:1800+30"]

1. Nf3 {[%emt 0:00:11]} c5 {[%emt 0:00:00]} 2. g3 {[%emt 0:00:23]} d5 {[%emt 0:00:00]} 3. Bg2 {[%emt 0:00:09]} Nc6 {[%emt 0:00:00]} 4. d4 {[%emt 0:00:19]} Nf6 {[%emt 0:00:54]} 5. O-O {[%emt 0:01:42]} cxd4 {[%emt 0:01:23]} 6. Nxd4 {[%emt 0:00:12]} e5 {[%emt 0:00:06]} 7. Nxc6 {[%emt 0:00:17]} bxc6 {[%emt 0:00:04]} 8. c4 {[%emt 0:00:09]} Be6 {[%emt 0:00:26]} 9. Nc3 {[%emt 0:01:49]} Rc8 {[%emt 0:00:10]} 10. cxd5 {[%emt 0:00:39]} cxd5 {[%emt 0:00:05]} 11. Qa4+ {[%emt 0:00:08]} Qd7 {[%emt 0:00:05]} 12. Qxd7+ {[%emt 0:00:46]} Kxd7 {[%emt 0:00:05]} 13. Rd1 {[%emt 0:06:25]} Bc5 {[%emt 0:00:06]} 14. Na4 {[%emt 0:20:20]} h6 {[%emt 0:08:36]} 15. Nxc5+ {[%emt 0:09:47]} Rxc5 {[%emt 0:00:02]} 16. Bd2 {[%emt 0:03:05]} Bf5 {[%emt 0:12:40]} 17. Rac1 {[%emt 0:07:41]} Rhc8 {[%emt 0:00:17]} 18. Rxc5 {[%emt 0:04:59]} Rxc5 {[%emt 0:00:01]} 19. Bc3 {[%emt 0:00:09]} Ke6 {[%emt 0:00:31]} 20. e3 {[%emt 0:02:05]} Ne4 {[%emt 0:02:10]} 1/2-1/2

[Event "GER-chT Youth Countries 2018"]
[Site "Wurzburg"]
[Date "2018.10.03"]
[Round "2"]
[White "Degenhard, Simon"]
[Black "Niermann, Tristan"]
[Result "1/2-1/2"]
[ECO "D12"]
[WhiteElo "2235"]
[BlackElo "2315"]
[Annotator "NA"]
[PlyCount "45"]
[EventDate "2018.10.02"]
[EventType "team-tourn"]
[EventCountry "GER"]
[SourceTitle "playchess.com"]
[Source "ChessBase"]
[SourceQuality "1"]
[TimeControl "40/5400+30:1800+30"]

1. d4 {[%emt 0:00:00]} d5 {[%emt 0:00:00]} 2. c4 {[%emt 0:00:00]} c6 {[%emt 0:00:00]} 3. e3 {[%emt 0:00:00]} Nf6 {[%emt 0:00:00]} 4. Nf3 {[%emt 0:00:00]} Bf5 {[%emt 0:00:00]} 5. Nc3 {[%emt 0:00:00]} e6 {[%emt 0:00:00]} 6. Qb3 {[%emt 0:00:00]} Qb6 {[%emt 0:02:41]} 7. c5 {[%emt 0:00:07]} Qc7 {[%emt 0:00:21]} 8. Nh4 {[%emt 0:00:09]} Be4 {[%emt 0:00:51]} 9. Nxe4 {[%emt 0:07:26]} Nxe4 {[%emt 0:02:42]} 10. Qc2 {[%emt 0:03:03]} Nd7 {[%emt 0:12:15]} 11. Bd3 {[%emt 0:02:21]} f5 {[%emt 0:01:46]} 12. Nf3 {[%emt 0:04:18]} Be7 {[%emt 0:01:22]} 13. O-O {[%emt 0:01:33]} O-O {[%emt 0:01:42]} 14. Nd2 {[%emt 0:04:51]} Rf6 {[%emt 0:07:28]} 15. Nxe4 {[%emt 0:09:16]} fxe4 {[%emt 0:00:15]} 16. Be2 {[%emt 0:00:07]} Raf8 {[%emt 0:12:14]} 17. f3 {[%emt 0:03:44]} exf3 {[%emt 0:10:28]} 18. Rxf3 {[%emt 0:03:44]} e5 {[%emt 0:03:12]} 19. Bd2 {[%emt 0:02:09]} Rxf3 {[%emt 0:07:54]} 20. Bxf3 {[%emt 0:00:33]} Bg5 {[%emt 0:01:49]} 21. e4 {[%emt 0:05:52]} Bxd2 {[%emt 0:02:34]} 22. Qxd2 {[%emt 0:00:52]} dxe4 {[%emt 0:01:03]} 23. Bxe4 {[%emt 0:01:33]} 1/2-1/2

[Event "GER-chT Youth Countries 2018"]
[Site "Wurzburg"]
[Date "2018.10.03"]
[Round "2"]
[White "Kuznecovs, Nikita"]
[Black "Schmekel, Florian"]
[Result "0-1"]
[ECO "A46"]
[WhiteElo "2226"]
[BlackElo "2106"]
[Annotator "NA"]
[PlyCount "52"]
[EventDate "2018.10.02"]
[EventType "team-tourn"]
[EventCountry "GER"]
[SourceTitle "playchess.com"]
[Source "ChessBase"]
[SourceQuality "1"]
[TimeControl "40/5400+30:1800+30"]

1. d4 {[%emt 0:00:00]} Nf6 {[%emt 0:00:00]} 2. Nf3 {[%emt 0:00:00]} e6 {[%emt 0:00:00]} 3. e3 {[%emt 0:00:03]} b6 {[%emt 0:00:10]} 4. Bd3 {[%emt 0:00:07]} Bb7 {[%emt 0:00:08]} 5. Nbd2 {[%emt 0:00:10]} d5 {[%emt 0:00:23]} 6. O-O {[%emt 0:00:16]} Be7 {[%emt 0:01:03]} 7. b3 {[%emt 0:00:12]} Nbd7 {[%emt 0:01:40]} 8. Bb2 {[%emt 0:00:15]} O-O {[%emt 0:02:49]} 9. Ne5 {[%emt 0:14:39]} Ne4 {[%emt 0:12:15]} 10. f4 {[%emt 0:18:33]} f5 {[%emt 0:02:12]} 11. Bxe4 {[%emt 0:20:18]} dxe4 {[%emt 0:02:52]} 12. Nxd7 {[%emt 0:04:12]} Qxd7 {[%emt 0:00:15]} 13. g4 {[%emt 0:01:13]} c5 {[%emt 0:07:22]} 14. g5 {[%emt 0:05:53]} Ba6 {[%emt 0:04:03]} 15. Re1 {[%emt 0:13:32]} Rad8 {[%emt 0:07:44]} 16. c4 {[%emt 0:08:47]} b5 {[%emt 0:07:17]} 17. cxb5 {[%emt 0:06:16]} Bxb5 {[%emt 0:00:51]} 18. h4 {[%emt 0:00:52]} cxd4 {[%emt 0:03:51]} 19. Bxd4 {[%emt 0:00:07]} Bb4 {[%emt 0:00:11]} 20. Qc2 {[%emt 0:03:50]} e5 {[%emt 0:06:15]} 21. fxe5 {[%emt 0:00:15]} Bd3 {[%emt 0:00:05]} 22. Qd1 {[%emt 0:00:53]} f4 {[%emt 0:00:30]} 23. Nf1 {[%emt 0:00:35]} Bxe1 {[%emt 0:00:40]} 24. Qxe1 {[%emt 0:00:14]} Qg4+ {[%emt 0:00:20]} 25. Kh1 {[%emt 0:00:37]} Bxf1 {[%emt 0:08:54]} 26. Qxf1 {[%emt 0:00:35]} fxe3 {[%emt 0:00:17]} 0-1

[Event "GER-chT Youth Countries 2018"]
[Site "Wurzburg"]
[Date "2018.10.03"]
[Round "2"]
[White "Wong, Gengchun"]
[Black "Doll, Alexander"]
[Result "1/2-1/2"]
[ECO "C68"]
[WhiteElo "2194"]
[BlackElo "2153"]
[Annotator "NA"]
[PlyCount "41"]
[EventDate "2018.10.02"]
[EventType "team-tourn"]
[EventCountry "GER"]
[SourceTitle "playchess.com"]
[Source "ChessBase"]
[SourceQuality "1"]
[TimeControl "40/5400+30:1800+30"]

1. e4 {[%emt 0:00:00]} e5 {[%emt 0:00:00]} 2. Nf3 {[%emt 0:00:00]} Nc6 {[%emt 0:00:00]} 3. Bb5 {[%emt 0:00:00]} a6 {[%emt 0:00:00]} 4. Bxc6 {[%emt 0:00:00]} dxc6 {[%emt 0:00:00]} 5. O-O {[%emt 0:00:00]} Bg4 {[%emt 0:00:00]} 6. h3 {[%emt 0:00:00]} h5 {[%emt 0:00:00]} 7. d3 {[%emt 0:00:04]} Qf6 {[%emt 0:00:06]} 8. Nbd2 {[%emt 0:00:07]} g5 {[%emt 0:00:03]} 9. b3 {[%emt 0:02:54]} Bd6 {[%emt 0:08:53]} 10. d4 {[%emt 0:09:43]} O-O-O {[%emt 0:08:06]} 11. Bb2 {[%emt 0:08:02]} exd4 {[%emt 0:06:52]} 12. hxg4 {[%emt 0:27:50]} hxg4 {[%emt 0:03:26]} 13. Bxd4 {[%emt 0:01:18]} Qxd4 {[%emt 0:00:45]} 14. Nxd4 {[%emt 0:00:05]} Bh2+ {[%emt 0:00:07]} 15. Kh1 {[%emt 0:00:02]} Bf4+ {[%emt 0:00:44]} 16. Kg1 {[%emt 0:00:03]} Bh2+ {[%emt 0:00:06]} 17. Kh1 {[%emt 0:00:02]} Be5+ {[%emt 0:00:06]} 18. Kg1 {[%emt 0:00:03]} Bh2+ 19. Kh1 Bf4+ {[%emt 0:00:16]} 20. Kg1 {[%emt 0:00:03]} Bh2+ {[%emt 0:00:06]} 21. Kh1 {[%emt 0:00:03]} 1/2-1/2

[Event "GER-chT Youth Countries 2018"]
[Site "Wurzburg"]
[Date "2018.10.03"]
[Round "2"]
[White "Kopylov, Daniel"]
[Black "Hartge, Gedeon"]
[Result "1-0"]
[ECO "B40"]
[WhiteElo "2192"]
[BlackElo "2214"]
[Annotator "NA"]
[PlyCount "49"]
[EventDate "2018.10.02"]
[EventType "team-tourn"]
[EventCountry "GER"]
[SourceTitle "playchess.com"]
[Source "ChessBase"]
[SourceQuality "1"]
[TimeControl "40/5400+30:1800+30"]

1. e4 {[%emt 0:00:00]} c5 {[%emt 0:00:00]} 2. Nf3 {[%emt 0:00:00]} e6 {[%emt 0:00:00]} 3. g3 {[%emt 0:00:14]} Nc6 {[%emt 0:00:00]} 4. Bg2 {[%emt 0:00:12]} Nf6 {[%emt 0:00:00]} 5. d3 {[%emt 0:00:32]} d5 {[%emt 0:00:27]} 6. Nbd2 {[%emt 0:00:32]} Be7 {[%emt 0:01:45]} 7. O-O {[%emt 0:00:18]} O-O {[%emt 0:02:46]} 8. e5 {[%emt 0:01:18]} Nd7 {[%emt 0:02:14]} 9. Re1 {[%emt 0:00:30]} Qc7 {[%emt 0:05:12]} 10. Qe2 {[%emt 0:00:43]} b5 {[%emt 0:04:21]} 11. Nf1 {[%emt 0:03:34]} Bb7 {[%emt 0:10:14]} 12. c3 {[%emt 0:03:18]} b4 {[%emt 0:05:56]} 13. Bf4 {[%emt 0:05:05]} bxc3 {[%emt 0:10:49]} 14. bxc3 {[%emt 0:00:08]} Ba6 {[%emt 0:00:13]} 15. Ne3 {[%emt 0:04:31]} Qa5 {[%emt 0:03:09]} 16. Rac1 {[%emt 0:02:56]} Nb6 {[%emt 0:10:22]} 17. Nd2 {[%emt 0:03:10]} Rac8 {[%emt 0:06:55]} 18. h4 {[%emt 0:12:49]} Na4 {[%emt 0:09:20]} 19. c4 {[%emt 0:09:18]} Nc3 {[%emt 0:09:05]} 20. Qh5 {[%emt 0:06:24]} d4 {[%emt 0:09:41]} 21. Ng4 {[%emt 0:02:38]} Qd8 {[%emt 0:02:12]} 22. Bg5 {[%emt 0:04:26]} Bxg5 {[%emt 0:04:31]} 23. hxg5 {[%emt 0:00:17]} Ne7 {[%emt 0:00:51]} 24. Rxc3 {[%emt 0:02:03]} dxc3 {[%emt 0:00:58]} 25. Ne4 {[%emt 0:00:22]} 1-0

[Event "GER-chT Youth Countries 2018"]
[Site "Wurzburg"]
[Date "2018.10.03"]
[Round "2"]
[White "Schneider, Jana"]
[Black "Ewert, Hannes"]
[Result "0-1"]
[ECO "C50"]
[WhiteElo "2190"]
[BlackElo "2314"]
[Annotator "NA"]
[PlyCount "78"]
[EventDate "2018.10.02"]
[EventType "team-tourn"]
[EventCountry "GER"]
[SourceTitle "playchess.com"]
[Source "ChessBase"]
[SourceQuality "1"]
[TimeControl "40/5400+30:1800+30"]

1. e4 {[%emt 0:00:00]} e5 {[%emt 0:00:00]} 2. Nf3 {[%emt 0:00:00]} Nc6 {[%emt 0:00:02]} 3. Bc4 {[%emt 0:00:00]} Bc5 {[%emt 0:00:22]} 4. O-O {[%emt 0:01:25]} Nf6 {[%emt 0:00:13]} 5. d3 {[%emt 0:00:11]} O-O {[%emt 0:00:52]} 6. a4 {[%emt 0:00:59]} d6 {[%emt 0:01:34]} 7. c3 {[%emt 0:00:31]} a5 {[%emt 0:00:11]} 8. Bg5 {[%emt 0:01:09]} h6 {[%emt 0:03:04]} 9. Bh4 {[%emt 0:00:17]} Be6 {[%emt 0:07:20]} 10. Bxe6 {[%emt 0:03:19]} fxe6 {[%emt 0:00:05]} 11. d4 {[%emt 0:00:14]} exd4 {[%emt 0:03:14]} 12. cxd4 {[%emt 0:00:08]} Bb6 {[%emt 0:02:23]} 13. Nc3 {[%emt 0:15:53]} Qe8 {[%emt 0:04:34]} 14. d5 {[%emt 0:02:26]} Nb4 {[%emt 0:01:23]} 15. Bxf6 {[%emt 0:19:13]} Rxf6 {[%emt 0:00:19]} 16. Rc1 {[%emt 0:07:46]} e5 {[%emt 0:06:01]} 17. Nh4 {[%emt 0:03:29]} Qf8 {[%emt 0:03:01]} 18. Qd2 {[%emt 0:08:45]} Rxf2 {[%emt 0:02:01]} 19. Rxf2 {[%emt 0:00:54]} Qxf2+ {[%emt 0:00:05]} 20. Qxf2 {[%emt 0:00:08]} Bxf2+ {[%emt 0:00:04]} 21. Kxf2 {[%emt 0:00:54]} Nd3+ {[%emt 0:00:04]} 22. Ke3 {[%emt 0:01:07]} Nxc1 {[%emt 0:00:05]} 23. Nf5 {[%emt 0:00:42]} Rd8 {[%emt 0:01:52]} 24. Kd2 {[%emt 0:01:41]} Nb3+ {[%emt 0:00:06]} 25. Kd3 {[%emt 0:00:08]} h5 {[%emt 0:08:26]} 26. Kc4 {[%emt 0:01:09]} Nc5 {[%emt 0:01:42]} 27. Kb5 {[%emt 0:01:33]} Ra8 {[%emt 0:03:06]} 28. Ne3 {[%emt 0:01:37]} Ra6 {[%emt 0:03:26]} 29. Kc4 {[%emt 0:00:42]} Rb6 {[%emt 0:01:26]} 30. Nb5 {[%emt 0:00:53]} Nxe4 {[%emt 0:01:02]} 31. Nxc7 {[%emt 0:01:33]} Rxb2 {[%emt 0:00:30]} 32. Nb5 {[%emt 0:00:30]} Rb4+ {[%emt 0:00:46]} 33. Kd3 {[%emt 0:00:06]} Rxa4 {[%emt 0:00:57]} 34. Nf5 {[%emt 0:01:33]} Rb4 {[%emt 0:02:22]} 35. Nbxd6 {[%emt 0:00:51]} Nxd6 {[%emt 0:00:05]} 36. Nxd6 {[%emt 0:00:06]} Rd4+ {[%emt 0:00:04]} 37. Kc3 {[%emt 0:00:22]} Rxd5 {[%emt 0:00:07]} 38. Nxb7 {[%emt 0:00:21]} e4 {[%emt 0:00:05]} 39. Kc4 {[%emt 0:00:28]} e3 {[%emt 0:00:19]} 0-1

[Event "GER-chT Youth Countries 2018"]
[Site "Wurzburg"]
[Date "2018.10.03"]
[Round "2"]
[White "Browning, Alex"]
[Black "Walter, Kevin"]
[Result "1/2-1/2"]
[ECO "B40"]
[WhiteElo "2148"]
[BlackElo "2196"]
[Annotator "NA"]
[PlyCount "33"]
[EventDate "2018.10.02"]
[EventType "team-tourn"]
[EventCountry "GER"]
[SourceTitle "playchess.com"]
[Source "ChessBase"]
[SourceQuality "1"]
[TimeControl "40/5400+30:1800+30"]

1. e4 {[%emt 0:00:00]} c5 {[%emt 0:00:26]} 2. Nf3 {[%emt 0:00:00]} e6 {[%emt 0:00:26]} 3. c3 {[%emt 0:00:00]} Nf6 {[%emt 0:00:23]} 4. e5 {[%emt 0:00:06]} Nd5 {[%emt 0:00:07]} 5. d4 {[%emt 0:00:05]} cxd4 {[%emt 0:00:36]} 6. cxd4 {[%emt 0:00:14]} d6 {[%emt 0:00:36]} 7. a3 {[%emt 0:00:13]} Nc6 {[%emt 0:01:30]} 8. Bd3 {[%emt 0:00:08]} Be7 {[%emt 0:05:12]} 9. O-O {[%emt 0:00:33]} O-O {[%emt 0:01:52]} 10. Qc2 {[%emt 0:01:34]} g6 {[%emt 0:02:28]} 11. Qe2 {[%emt 0:03:11]} Qb6 {[%emt 0:07:29]} 12. Qe4 {[%emt 0:19:56]} f5 {[%emt 0:21:57]} 13. exf6 {[%emt 0:00:41]} Nxf6 {[%emt 0:00:30]} 14. Qh4 {[%emt 0:06:34]} Nh5 {[%emt 0:08:28]} 15. Qe4 {[%emt 0:06:32]} Nf6 {[%emt 0:08:30]} 16. Qh4 {[%emt 0:00:23]} Nh5 {[%emt 0:00:13]} 17. Qe4 {[%emt 0:00:46]} 1/2-1/2

[Event "GER-chT Youth Countries 2018"]
[Site "Wurzburg"]
[Date "2018.10.03"]
[Round "2"]
[White "Koelle, Tobias"]
[Black "Garbuz, Vitaliy"]
[Result "1-0"]
[ECO "D12"]
[WhiteElo "2125"]
[BlackElo "2182"]
[Annotator "NA"]
[PlyCount "83"]
[EventDate "2018.10.02"]
[EventType "team-tourn"]
[EventCountry "GER"]
[SourceTitle "playchess.com"]
[Source "ChessBase"]
[SourceQuality "1"]
[TimeControl "40/5400+30:1800+30"]

1. d4 {[%emt 0:00:00]} d5 {[%emt 0:00:00]} 2. c4 {[%emt 0:00:00]} c6 {[%emt 0:00:00]} 3. Nf3 {[%emt 0:00:00]} Nf6 {[%emt 0:00:00]} 4. e3 {[%emt 0:00:12]} Bf5 {[%emt 0:00:00]} 5. Nc3 {[%emt 0:00:41]} a6 {[%emt 0:00:00]} 6. Bd3 {[%emt 0:02:56]} Bg6 {[%emt 0:00:29]} 7. O-O {[%emt 0:00:44]} e6 {[%emt 0:00:22]} 8. b3 {[%emt 0:01:00]} Nbd7 {[%emt 0:00:32]} 9. Bb2 {[%emt 0:00:21]} Bd6 {[%emt 0:00:09]} 10. Re1 {[%emt 0:05:18]} b5 {[%emt 0:03:47]} 11. e4 {[%emt 0:03:42]} b4 {[%emt 0:00:44]} 12. Nxd5 {[%emt 0:13:32]} cxd5 {[%emt 0:14:38]} 13. e5 {[%emt 0:00:41]} Bxd3 {[%emt 0:02:11]} 14. Qxd3 {[%emt 0:00:24]} Bc7 {[%emt 0:08:59]} 15. exf6 {[%emt 0:00:13]} Nxf6 {[%emt 0:00:08]} 16. Ne5 {[%emt 0:02:50]} O-O {[%emt 0:01:11]} 17. Rad1 {[%emt 0:08:08]} a5 {[%emt 0:00:54]} 18. Bc1 {[%emt 0:01:00]} Ne4 {[%emt 0:01:39]} 19. Re3 {[%emt 0:17:04]} Bxe5 {[%emt 0:12:42]} 20. dxe5 {[%emt 0:00:46]} Nc3 {[%emt 0:04:00]} 21. Rh3 {[%emt 0:02:22]} f5 {[%emt 0:03:25]} 22. exf6 {[%emt 0:03:38]} g6 {[%emt 0:07:46]} 23. Re1 {[%emt 0:08:02]} Qxf6 {[%emt 0:06:05]} 24. Rf3 {[%emt 0:00:48]} Qh4 {[%emt 0:00:19]} 25. Rxf8+ {[%emt 0:01:40]} Rxf8 {[%emt 0:00:13]} 26. Qe3 {[%emt 0:03:00]} dxc4 {[%emt 0:05:25]} 27. Qxe6+ {[%emt 0:00:48]} Kh8 {[%emt 0:01:05]} 28. Be3 {[%emt 0:02:55]} Qe4 {[%emt 0:04:54]} 29. Qxe4 {[%emt 0:00:42]} Nxe4 {[%emt 0:00:02]} 30. Bd4+ {[%emt 0:00:17]} Nf6 {[%emt 0:00:07]} 31. Re6 {[%emt 0:00:43]} Kg7 {[%emt 0:00:09]} 32. g4 {[%emt 0:00:48]} g5 {[%emt 0:03:16]} 33. f4 {[%emt 0:00:45]} h6 {[%emt 0:00:33]} 34. h4 {[%emt 0:01:22]} gxh4 {[%emt 0:01:14]} 35. g5 {[%emt 0:00:07]} hxg5 {[%emt 0:00:02]} 36. fxg5 {[%emt 0:00:07]} c3 {[%emt 0:00:12]} 37. Rxf6 {[%emt 0:02:25]} Rxf6 {[%emt 0:01:54]} 38. gxf6+ {[%emt 0:00:43]} Kg6 {[%emt 0:00:06]} 39. Kg2 {[%emt 0:00:12]} c2 {[%emt 0:00:31]} 40. Bb2 {[%emt 0:00:05]} c1=Q {[%emt 0:00:24]} 41. Bxc1 {[%emt 0:30:05]} Kxf6 {[%emt 0:30:16]} 42. Be3 {[%emt 0:00:04]} 1-0

[Event "GER-chT Youth Countries 2018"]
[Site "Wurzburg"]
[Date "2018.10.03"]
[Round "2"]
[White "Philipp, Mathias"]
[Black "Troyke, Jannis"]
[Result "1-0"]
[ECO "B20"]
[WhiteElo "2076"]
[BlackElo "1924"]
[Annotator "NA"]
[PlyCount "51"]
[EventDate "2018.10.02"]
[EventType "team-tourn"]
[EventCountry "GER"]
[SourceTitle "playchess.com"]
[Source "ChessBase"]
[SourceQuality "1"]
[TimeControl "40/5400+30:1800+30"]

1. e4 {[%emt 0:00:00]} c5 {[%emt 0:00:00]} 2. b3 {[%emt 0:00:00]} Nc6 {[%emt 0:01:17]} 3. Bb2 {[%emt 0:00:00]} Nf6 {[%emt 0:04:30]} 4. e5 {[%emt 0:00:00]} Nd5 {[%emt 0:00:07]} 5. Nf3 {[%emt 0:00:11]} e6 {[%emt 0:05:26]} 6. g3 {[%emt 0:00:12]} Be7 {[%emt 0:01:45]} 7. Bg2 {[%emt 0:02:23]} O-O {[%emt 0:03:25]} 8. O-O {[%emt 0:00:06]} f6 {[%emt 0:00:11]} 9. exf6 {[%emt 0:04:39]} Bxf6 {[%emt 0:00:10]} 10. d4 {[%emt 0:00:55]} cxd4 {[%emt 0:04:00]} 11. Nxd4 {[%emt 0:00:10]} Qb6 {[%emt 0:00:15]} 12. Bxd5 {[%emt 0:08:11]} Nxd4 {[%emt 0:00:06]} 13. c3 {[%emt 0:00:27]} Nc6 {[%emt 0:26:50]} 14. Bg2 {[%emt 0:02:26]} Qc7 {[%emt 0:09:32]} 15. Nd2 {[%emt 0:01:38]} b6 {[%emt 0:06:01]} 16. Ne4 {[%emt 0:01:41]} Be7 {[%emt 0:00:10]} 17. c4 {[%emt 0:01:27]} Bb7 {[%emt 0:05:49]} 18. f4 {[%emt 0:10:42]} Rad8 {[%emt 0:10:21]} 19. Qg4 {[%emt 0:03:34]} g6 {[%emt 0:00:20]} 20. Rad1 {[%emt 0:01:42]} Nb4 {[%emt 0:05:44]} 21. Be5 {[%emt 0:04:29]} Qc6 {[%emt 0:03:15]} 22. Nf6+ {[%emt 0:02:56]} Bxf6 {[%emt 0:00:13]} 23. Bxc6 {[%emt 0:00:13]} Bxc6 {[%emt 0:00:15]} 24. Bxf6 {[%emt 0:04:38]} Rxf6 {[%emt 0:00:06]} 25. a3 {[%emt 0:00:41]} Na6 {[%emt 0:00:49]} 26. b4 {[%emt 0:00:53]} 1-0

[Event "GER-chT Youth Countries 2018"]
[Site "Wurzburg"]
[Date "2018.10.03"]
[Round "2"]
[White "Lesny, Florian"]
[Black "Ley, Sabrina"]
[Result "1-0"]
[ECO "B01"]
[WhiteElo "2073"]
[BlackElo "1902"]
[Annotator "NA"]
[PlyCount "71"]
[EventDate "2018.10.02"]
[EventType "team-tourn"]
[EventCountry "GER"]
[SourceTitle "playchess.com"]
[Source "ChessBase"]
[SourceQuality "1"]
[TimeControl "40/5400+30:1800+30"]

1. e4 {[%emt 0:00:00]} d5 {[%emt 0:00:00]} 2. exd5 {[%emt 0:00:00]} Qxd5 {[%emt 0:00:00]} 3. Nc3 {[%emt 0:00:00]} Qd6 {[%emt 0:00:00]} 4. d4 {[%emt 0:00:14]} Nf6 {[%emt 0:00:04]} 5. Nf3 {[%emt 0:00:21]} a6 {[%emt 0:00:05]} 6. Bd3 {[%emt 0:00:40]} Bg4 {[%emt 0:01:09]} 7. h3 {[%emt 0:01:29]} Bh5 {[%emt 0:01:12]} 8. Be3 {[%emt 0:03:59]} Nc6 {[%emt 0:00:30]} 9. g4 {[%emt 0:03:41]} Bg6 {[%emt 0:03:16]} 10. Qe2 {[%emt 0:05:30]} Bxd3 {[%emt 0:03:00]} 11. Qxd3 {[%emt 0:00:38]} O-O-O {[%emt 0:02:26]} 12. O-O-O {[%emt 0:03:35]} e6 {[%emt 0:04:32]} 13. Kb1 {[%emt 0:05:20]} Kb8 {[%emt 0:02:10]} 14. Qe2 {[%emt 0:04:11]} Nd5 {[%emt 0:08:22]} 15. Ne4 {[%emt 0:04:26]} Qb4 {[%emt 0:11:13]} 16. c3 {[%emt 0:01:37]} Qb6 {[%emt 0:08:39]} 17. c4 {[%emt 0:02:34]} Nxe3 {[%emt 0:02:14]} 18. fxe3 {[%emt 0:00:18]} f6 {[%emt 0:03:56]} 19. c5 {[%emt 0:05:28]} Qa5 {[%emt 0:05:13]} 20. Rd3 {[%emt 0:10:51]} Nb4 {[%emt 0:13:10]} 21. Ra3 {[%emt 0:01:25]} Qb5 {[%emt 0:00:07]} 22. Qd1 {[%emt 0:04:21]} Qc6 {[%emt 0:05:28]} 23. Ned2 {[%emt 0:00:52]} e5 {[%emt 0:05:57]} 24. Rb3 {[%emt 0:01:50]} Nd5 {[%emt 0:02:16]} 25. Nc4 {[%emt 0:01:01]} b6 {[%emt 0:06:57]} 26. Qe2 {[%emt 0:06:58]} Ka7 {[%emt 0:02:23]} 27. cxb6+ {[%emt 0:01:44]} cxb6 {[%emt 0:04:35]} 28. dxe5 {[%emt 0:05:24]} b5 {[%emt 0:03:12]} 29. Na3 {[%emt 0:04:41]} Bxa3 {[%emt 0:01:04]} 30. Rxa3 {[%emt 0:00:23]} fxe5 {[%emt 0:00:07]} 31. Rc1 {[%emt 0:01:30]} Qb6 {[%emt 0:01:10]} 32. Nxe5 {[%emt 0:02:55]} Rc8 {[%emt 0:00:28]} 33. Rd1 {[%emt 0:01:37]} Rhd8 {[%emt 0:00:29]} 34. Rad3 {[%emt 0:02:05]} Nf6 {[%emt 0:00:43]} 35. Rxd8 {[%emt 0:00:36]} Rxd8 {[%emt 0:00:07]} 36. Rxd8 {[%emt 0:00:11]} 1-0